[Event "*** SCC Grand Prix: Titled Tuesday Blitz"]
[Site "Chess.com"]
[Date "2020.07.14"]
[Round "6"]
[White "Ermito2020"]
[Black "malandragem"]
[Result "1-0"]
[WhiteElo "2526"]
[BlackElo "2358"]
[TimeControl "180+1"]
[EndTime "11:07:58 PDT"]
[Termination "Ermito2020 won by checkmate"]

1. e4 {[%clk 0:03:00.9]} 1... c5 {[%clk 0:03:00.1]} 2. Nf3 {[%clk 0:03:00.4]}
2... d6 {[%clk 0:03:00.5]} 3. d4 {[%clk 0:03:00.4]} 3... cxd4 {[%clk 0:03:01.4]}
4. Nxd4 {[%clk 0:03:00.9]} 4... Nf6 {[%clk 0:03:02]} 5. Nc3 {[%clk 0:03:01.5]}
5... g6 {[%clk 0:03:02]} 6. Be3 {[%clk 0:03:00.7]} 6... Bg7 {[%clk 0:03:02.4]}
7. f3 {[%clk 0:03:00.7]} 7... O-O {[%clk 0:03:02.9]} 8. Qd2 {[%clk 0:03:01.1]}
8... Nc6 {[%clk 0:03:03.3]} 9. g4 {[%clk 0:03:00.6]} 9... Bxg4 {[%clk
0:02:58.6]} 10. fxg4 {[%clk 0:02:57.4]} 10... Nxg4 {[%clk 0:02:59.5]} 11. Nxc6
{[%clk 0:02:55.3]} 11... bxc6 {[%clk 0:02:55.3]} 12. O-O-O {[%clk 0:02:55.8]}
12... Qa5 {[%clk 0:01:32.4]} 13. Bc4 {[%clk 0:02:49.9]} 13... Bxc3 {[%clk
0:01:13.6]} 14. bxc3 {[%clk 0:02:49.3]} 14... Qa3+ {[%clk 0:01:14.2]} 15. Kb1
{[%clk 0:02:48.4]} 15... Rfb8+ {[%clk 0:01:14.8]} 16. Bb3 {[%clk 0:02:48.4]}
16... a5 {[%clk 0:01:15.5]} 17. Qc1 {[%clk 0:01:57.3]} 17... Qxc1+ {[%clk
0:01:15.2]} 18. Bxc1 {[%clk 0:01:58.2]} 18... a4 {[%clk 0:01:15.2]} 19. Rhg1
{[%clk 0:01:33]} 19... Nf6 {[%clk 0:01:14]} 20. Rge1 {[%clk 0:01:18.8]} 20...
Nd7 {[%clk 0:01:08.1]} 21. Bf4 {[%clk 0:01:17.3]} 21... Nc5 {[%clk 0:00:59.9]}
22. e5 {[%clk 0:01:13.2]} 22... Ne6 {[%clk 0:00:59.9]} 23. Bh6 {[%clk
0:00:47.7]} 23... d5 {[%clk 0:00:59.6]} 24. h4 {[%clk 0:00:44.4]} 24... axb3
{[%clk 0:00:59]} 25. cxb3 {[%clk 0:00:44.4]} 25... Ra4 {[%clk 0:00:51]} 26. h5
{[%clk 0:00:37.8]} 26... g5 {[%clk 0:00:46.9]} 27. Rg1 {[%clk 0:00:16.6]} 27...
f6 {[%clk 0:00:46.9]} 28. Rdf1 {[%clk 0:00:13.4]} 28... Rf4 {[%clk 0:00:35.5]}
29. Rxf4 {[%clk 0:00:11.6]} 29... Nxf4 {[%clk 0:00:33]} 30. exf6 {[%clk
0:00:12.2]} 30... exf6 {[%clk 0:00:33.6]} 31. Kb2 {[%clk 0:00:11.9]} 31... Nxh5
{[%clk 0:00:31.7]} 32. Bxg5 {[%clk 0:00:11.3]} 32... fxg5 {[%clk 0:00:30.9]} 33.
Rxg5+ {[%clk 0:00:12.2]} 33... Ng7 {[%clk 0:00:31.5]} 34. a4 {[%clk 0:00:13]}
34... Kf7 {[%clk 0:00:31.4]} 35. a5 {[%clk 0:00:12.9]} 35... Kf6 {[%clk
0:00:31.7]} 36. Rg1 {[%clk 0:00:12.4]} 36... h5 {[%clk 0:00:31.9]} 37. b4 {[%clk
0:00:12.5]} 37... h4 {[%clk 0:00:31.7]} 38. Rh1 {[%clk 0:00:12.5]} 38... Nf5
{[%clk 0:00:31.9]} 39. Kb3 {[%clk 0:00:12.2]} 39... Kg5 {[%clk 0:00:30.8]} 40.
c4 {[%clk 0:00:12.1]} 40... Kg4 {[%clk 0:00:25.9]} 41. cxd5 {[%clk 0:00:11.1]}
41... cxd5 {[%clk 0:00:26.8]} 42. Ka4 {[%clk 0:00:11.4]} 42... h3 {[%clk
0:00:27.2]} 43. b5 {[%clk 0:00:11.1]} 43... Kg3 {[%clk 0:00:27.5]} 44. a6 {[%clk
0:00:11.1]} 44... Kg2 {[%clk 0:00:24.5]} 45. Rb1 {[%clk 0:00:09.4]} 45... Nd4
{[%clk 0:00:17.8]} 46. b6 {[%clk 0:00:08.2]} 46... Nc6 {[%clk 0:00:18.1]} 47.
Kb5 {[%clk 0:00:05.1]} 47... Na7+ {[%clk 0:00:14.5]} 48. Kc5 {[%clk 0:00:04.7]}
48... Nc8 {[%clk 0:00:15.2]} 49. b7 {[%clk 0:00:03.8]} 49... Na7 {[%clk
0:00:15]} 50. Kb6 {[%clk 0:00:03.4]} 50... Nc8+ {[%clk 0:00:15.5]} 51. Kc7
{[%clk 0:00:03.7]} 51... Rxb7+ {[%clk 0:00:15.2]} 52. axb7 {[%clk 0:00:03.6]}
52... Nd6 {[%clk 0:00:14.1]} 53. b8=Q {[%clk 0:00:03.2]} 53... Ne8+ {[%clk
0:00:13.5]} 54. Qxe8 {[%clk 0:00:02.5]} 54... d4 {[%clk 0:00:14.1]} 55. Qg8+
{[%clk 0:00:02.6]} 55... Kf3 {[%clk 0:00:14.5]} 56. Rd1 {[%clk 0:00:02.9]} 56...
h2 {[%clk 0:00:15.4]} 57. Qh7 {[%clk 0:00:02.5]} 57... Kg2 {[%clk 0:00:16.3]}
58. Rd2+ {[%clk 0:00:02.3]} 58... Kg1 {[%clk 0:00:16.3]} 59. Qxh2+ {[%clk
0:00:03.2]} 59... Kf1 {[%clk 0:00:17.1]} 60. Qf2# {[%clk 0:00:03.5]} 1-0

[Event "*** SCC Grand Prix: Titled Tuesday Blitz"]
[Site "Chess.com"]
[Date "2020.07.14"]
[Round "6"]
[White "VovenRogel"]
[Black "RaunakSadhwani2005"]
[Result "0-1"]
[WhiteElo "2730"]
[BlackElo "2954"]
[TimeControl "180+1"]
[EndTime "11:07:59 PDT"]
[Termination "RaunakSadhwani2005 won by resignation"]

1. d4 {[%clk 0:03:00.9]} 1... f5 {[%clk 0:02:59.9]} 2. g3 {[%clk 0:02:58.5]}
2... Nf6 {[%clk 0:02:59.9]} 3. Bg2 {[%clk 0:02:56.3]} 3... g6 {[%clk 0:03:00.5]}
4. c3 {[%clk 0:02:56.7]} 4... Bg7 {[%clk 0:02:58]} 5. Qb3 {[%clk 0:02:56.8]}
5... Nc6 {[%clk 0:02:56.8]} 6. Nh3 {[%clk 0:02:54.7]} 6... a5 {[%clk 0:02:56.8]}
7. a4 {[%clk 0:02:53.3]} 7... d5 {[%clk 0:02:46.3]} 8. Nf4 {[%clk 0:02:46.8]}
8... e6 {[%clk 0:02:45.4]} 9. O-O {[%clk 0:02:45.2]} 9... O-O {[%clk 0:02:44.4]}
10. Na3 {[%clk 0:02:41.8]} 10... Ne4 {[%clk 0:02:33]} 11. Nd3 {[%clk 0:02:36.9]}
11... b6 {[%clk 0:02:31.8]} 12. Nb5 {[%clk 0:02:29.3]} 12... Ba6 {[%clk
0:02:20.6]} 13. Be3 {[%clk 0:02:27.2]} 13... g5 {[%clk 0:02:16.6]} 14. f3 {[%clk
0:02:16.9]} 14... Nd6 {[%clk 0:02:16.4]} 15. Nxd6 {[%clk 0:02:11.7]} 15... cxd6
{[%clk 0:02:07.1]} 16. Bf2 {[%clk 0:02:06.6]} 16... Rc8 {[%clk 0:02:04.1]} 17.
Rad1 {[%clk 0:02:01.2]} 17... f4 {[%clk 0:01:57.3]} 18. Rfe1 {[%clk 0:01:59.3]}
18... Bc4 {[%clk 0:01:54.9]} 19. Qa3 {[%clk 0:01:57.1]} 19... h5 {[%clk
0:01:37]} 20. e4 {[%clk 0:01:52.8]} 20... dxe4 {[%clk 0:01:33.1]} 21. Rxe4
{[%clk 0:01:46.9]} 21... Bd5 {[%clk 0:01:30.1]} 22. Ree1 {[%clk 0:01:46.4]}
22... Ne7 {[%clk 0:00:51.5]} 23. gxf4 {[%clk 0:01:36.2]} 23... Ng6 {[%clk
0:00:48.8]} 24. fxg5 {[%clk 0:01:25.7]} 24... Qxg5 {[%clk 0:00:49.7]} 25. Qxd6
{[%clk 0:01:24.8]} 25... h4 {[%clk 0:00:48.6]} 26. Be3 {[%clk 0:01:19.7]} 26...
Qf5 {[%clk 0:00:44.2]} 27. Nf2 {[%clk 0:01:14.6]} 27... Rc6 {[%clk 0:00:42]} 28.
Qd7 {[%clk 0:01:04.7]} 28... Rf7 {[%clk 0:00:41.9]} 29. Qd8+ {[%clk 0:01:04.8]}
29... Rf8 {[%clk 0:00:39.6]} 30. Qg5 {[%clk 0:01:05]} 30... Qxg5 {[%clk
0:00:34.2]} 31. Bxg5 {[%clk 0:01:04.5]} 31... Bxf3 {[%clk 0:00:33.9]} 32. Bxf3
{[%clk 0:01:04.1]} 32... Rxf3 {[%clk 0:00:34.8]} 33. Kg2 {[%clk 0:00:54.2]}
33... Rf5 {[%clk 0:00:33.7]} 34. Bc1 {[%clk 0:00:53.8]} 34... Ne7 {[%clk
0:00:25.4]} 35. Nh3 {[%clk 0:00:47.3]} 35... Bf6 {[%clk 0:00:22.9]} 36. Nf4
{[%clk 0:00:46.3]} 36... Kf7 {[%clk 0:00:23.5]} 37. Rf1 {[%clk 0:00:44.9]} 37...
Rc4 {[%clk 0:00:23]} 38. Rde1 {[%clk 0:00:41]} 38... Rxa4 {[%clk 0:00:22.3]} 39.
Nxe6 {[%clk 0:00:38.5]} 39... h3+ {[%clk 0:00:22.5]} 40. Kg1 {[%clk 0:00:34.8]}
40... Rxf1+ {[%clk 0:00:21.9]} 41. Kxf1 {[%clk 0:00:35.7]} 41... Bh4 {[%clk
0:00:20.7]} 42. Re4 {[%clk 0:00:34.5]} 42... Ra1 {[%clk 0:00:21]} 43. Nd8+
{[%clk 0:00:29.9]} 43... Ke8 {[%clk 0:00:21.4]} 44. Rxh4 {[%clk 0:00:27.2]}
44... Rxc1+ {[%clk 0:00:21.8]} 45. Ke2 {[%clk 0:00:28.1]} 45... Kxd8 {[%clk
0:00:20.9]} 46. Kd2 {[%clk 0:00:28]} 46... Rg1 {[%clk 0:00:19.5]} 47. Rxh3
{[%clk 0:00:27.8]} 47... Rg2+ {[%clk 0:00:19.9]} 48. Kc1 {[%clk 0:00:26.3]}
48... Kd7 {[%clk 0:00:19]} 49. Rh5 {[%clk 0:00:24.7]} 49... Kc6 {[%clk
0:00:17.5]} 50. Kb1 {[%clk 0:00:24.8]} 50... Nd5 {[%clk 0:00:16.8]} 51. h4
{[%clk 0:00:23.9]} 51... Nf4 {[%clk 0:00:15.9]} 52. Rh6+ {[%clk 0:00:22.9]}
52... Kb5 {[%clk 0:00:16.2]} 53. b3 {[%clk 0:00:19.7]} 53... Rh2 {[%clk
0:00:14.4]} 54. Ka1 {[%clk 0:00:16.9]} 54... Ne2 {[%clk 0:00:12.7]} 55. Rh5+
{[%clk 0:00:13.6]} 55... Ka6 {[%clk 0:00:12.1]} 56. Kb2 {[%clk 0:00:12.1]} 56...
Nf4+ {[%clk 0:00:11.1]} 0-1

[Event "*** SCC Grand Prix: Titled Tuesday Blitz"]
[Site "Chess.com"]
[Date "2020.07.14"]
[Round "6"]
[White "2900tactinhos"]
[Black "Mischuk_D"]
[Result "0-1"]
[WhiteElo "2428"]
[BlackElo "2648"]
[TimeControl "180+1"]
[EndTime "11:08:01 PDT"]
[Termination "Mischuk_D won by resignation"]

1. d4 {[%clk 0:02:57.8]} 1... d5 {[%clk 0:02:59.8]} 2. c4 {[%clk 0:02:57.9]}
2... e6 {[%clk 0:02:59.8]} 3. Nc3 {[%clk 0:02:57.1]} 3... c5 {[%clk 0:02:59.6]}
4. cxd5 {[%clk 0:02:57]} 4... exd5 {[%clk 0:03:00.5]} 5. Nf3 {[%clk 0:02:56.9]}
5... Nc6 {[%clk 0:03:00.6]} 6. g3 {[%clk 0:02:57]} 6... Nf6 {[%clk 0:03:00.5]}
7. Bg2 {[%clk 0:02:57.1]} 7... cxd4 {[%clk 0:03:00.9]} 8. Nxd4 {[%clk
0:02:56.2]} 8... Bc5 {[%clk 0:03:01.1]} 9. Nb3 {[%clk 0:02:56.2]} 9... Bb6
{[%clk 0:03:00.1]} 10. O-O {[%clk 0:02:56]} 10... d4 {[%clk 0:02:59]} 11. Na4
{[%clk 0:02:55.1]} 11... O-O {[%clk 0:02:59.1]} 12. Bg5 {[%clk 0:02:49.1]} 12...
h6 {[%clk 0:02:45.3]} 13. Bxf6 {[%clk 0:02:46.7]} 13... Qxf6 {[%clk 0:02:46.2]}
14. Nxb6 {[%clk 0:02:46.4]} 14... axb6 {[%clk 0:02:47.1]} 15. Bxc6 {[%clk
0:02:43.2]} 15... bxc6 {[%clk 0:02:46.2]} 16. Qxd4 {[%clk 0:02:43.1]} 16... Qd8
{[%clk 0:02:46.1]} 17. Qxd8 {[%clk 0:02:39.2]} 17... Rxd8 {[%clk 0:02:45.6]} 18.
Rfd1 {[%clk 0:02:39.6]} 18... Be6 {[%clk 0:02:44.4]} 19. Nd4 {[%clk 0:02:38.9]}
19... Rxa2 {[%clk 0:02:13.1]} 20. Nxc6 {[%clk 0:02:34.9]} 20... Rxd1+ {[%clk
0:02:08.1]} 21. Rxd1 {[%clk 0:02:34.6]} 21... Rxb2 {[%clk 0:02:09]} 22. Rd8+
{[%clk 0:02:25.3]} 22... Kh7 {[%clk 0:02:08.7]} 23. Nd4 {[%clk 0:02:25.8]} 23...
Bc4 {[%clk 0:02:08.4]} 24. Rb8 {[%clk 0:02:13.4]} 24... b5 {[%clk 0:02:06.3]}
25. f4 {[%clk 0:02:12.1]} 25... b4 {[%clk 0:02:04.5]} 26. Kf2 {[%clk 0:02:12.1]}
26... b3 {[%clk 0:02:04.3]} 27. Rb4 {[%clk 0:02:10.4]} 27... Bd5 {[%clk
0:02:02]} 28. Rb5 {[%clk 0:02:10.4]} 28... Bc4 {[%clk 0:01:39.7]} 29. Rb4 {[%clk
0:02:08.3]} 29... Be6 {[%clk 0:01:35.1]} 30. f5 {[%clk 0:02:02.7]} 30... Bd5
{[%clk 0:01:34.8]} 31. Rb5 {[%clk 0:02:02.5]} 31... Bc4 {[%clk 0:01:21.2]} 32.
Rb4 {[%clk 0:01:57.7]} 32... Bd5 {[%clk 0:01:12.6]} 33. Rb5 {[%clk 0:01:53.1]}
33... Be4 {[%clk 0:00:53.9]} 34. Ke3 {[%clk 0:01:26]} 34... Bc2 {[%clk
0:00:50.2]} 35. Nxc2 {[%clk 0:01:24.2]} 35... bxc2 {[%clk 0:00:50.2]} 36. Rc5
{[%clk 0:01:23.8]} 36... h5 {[%clk 0:00:47.5]} 37. f6 {[%clk 0:01:14.1]} 37...
g5 {[%clk 0:00:44.9]} 38. Kd2 {[%clk 0:01:06.8]} 38... Kg6 {[%clk 0:00:42.8]}
39. Kc1 {[%clk 0:01:00.4]} 39... Ra2 {[%clk 0:00:42.5]} 40. Rc6 {[%clk
0:00:58.3]} 40... Kf5 {[%clk 0:00:40.4]} 41. h3 {[%clk 0:00:56.2]} 41... Ra3
{[%clk 0:00:38.3]} 42. Rc5+ {[%clk 0:00:48.5]} 42... Kxf6 {[%clk 0:00:36.3]} 43.
g4 {[%clk 0:00:48.8]} 43... h4 {[%clk 0:00:35.9]} 44. Rf5+ {[%clk 0:00:45.9]}
44... Kg6 {[%clk 0:00:35.8]} 45. Rf3 {[%clk 0:00:45.9]} 45... Rxf3 {[%clk
0:00:28.5]} 46. exf3 {[%clk 0:00:45.9]} 46... Kf6 {[%clk 0:00:29.4]} 47. Kxc2
{[%clk 0:00:45.9]} 47... Ke5 {[%clk 0:00:29.9]} 48. Kd3 {[%clk 0:00:43.7]} 48...
Kf4 {[%clk 0:00:30.8]} 49. Ke2 {[%clk 0:00:43.6]} 49... Kg3 {[%clk 0:00:31.1]}
50. Ke3 {[%clk 0:00:43.1]} 50... Kxh3 {[%clk 0:00:31.3]} 51. Ke4 {[%clk
0:00:43.3]} 51... Kg3 {[%clk 0:00:31.3]} 0-1

[Event "*** SCC Grand Prix: Titled Tuesday Blitz"]
[Site "Chess.com"]
[Date "2020.07.14"]
[Round "6"]
[White "otrov-11"]
[Black "alfiefischer77"]
[Result "1-0"]
[WhiteElo "2371"]
[BlackElo "2197"]
[TimeControl "180+1"]
[EndTime "11:08:01 PDT"]
[Termination "otrov-11 won on time"]

1. d4 {[%clk 0:02:53.5]} 1... Nf6 {[%clk 0:02:59.6]} 2. c4 {[%clk 0:02:53.7]}
2... e6 {[%clk 0:02:59.7]} 3. Nf3 {[%clk 0:02:52.7]} 3... Bb4+ {[%clk
0:03:00.2]} 4. Bd2 {[%clk 0:02:52.5]} 4... Qe7 {[%clk 0:03:00.5]} 5. g3 {[%clk
0:02:52.8]} 5... Nc6 {[%clk 0:03:00.3]} 6. Nc3 {[%clk 0:02:53.1]} 6... O-O
{[%clk 0:02:56.5]} 7. Bg2 {[%clk 0:02:53]} 7... Na5 {[%clk 0:02:57.1]} 8. b3
{[%clk 0:02:50]} 8... b6 {[%clk 0:02:57]} 9. O-O {[%clk 0:02:49.7]} 9... Bb7
{[%clk 0:02:57.1]} 10. Rc1 {[%clk 0:02:47.4]} 10... d5 {[%clk 0:02:54.7]} 11.
cxd5 {[%clk 0:02:45]} 11... exd5 {[%clk 0:02:54.4]} 12. Ne5 {[%clk 0:02:40]}
12... c5 {[%clk 0:02:46.5]} 13. Bf4 {[%clk 0:02:39.9]} 13... Rfd8 {[%clk
0:02:29.7]} 14. Nb1 {[%clk 0:02:30.4]} 14... cxd4 {[%clk 0:02:15.5]} 15. Qxd4
{[%clk 0:02:31.3]} 15... Rac8 {[%clk 0:02:05.6]} 16. Bg5 {[%clk 0:02:14.4]}
16... Bc5 {[%clk 0:01:43.1]} 17. Qb2 {[%clk 0:02:11.8]} 17... h6 {[%clk
0:01:26]} 18. Bd2 {[%clk 0:02:04.8]} 18... Bd6 {[%clk 0:00:55.7]} 19. Bxa5
{[%clk 0:01:50.5]} 19... Bxe5 {[%clk 0:00:51.1]} 20. Bc3 {[%clk 0:01:50.9]}
20... d4 {[%clk 0:00:50.2]} 21. Bb4 {[%clk 0:01:28.3]} 21... Qxb4 {[%clk
0:00:41.6]} 22. Bxb7 {[%clk 0:01:27]} 22... Rb8 {[%clk 0:00:34.9]} 23. Bg2
{[%clk 0:01:23.3]} 23... Ng4 {[%clk 0:00:28]} 24. Qd2 {[%clk 0:01:16.1]} 24...
Qxd2 {[%clk 0:00:24.6]} 25. Nxd2 {[%clk 0:01:16.2]} 25... d3 {[%clk 0:00:24.5]}
26. exd3 {[%clk 0:01:11.8]} 26... Rxd3 {[%clk 0:00:24.5]} 27. Nf3 {[%clk
0:01:00.7]} 27... Bf6 {[%clk 0:00:19.9]} 28. h3 {[%clk 0:00:58.7]} 28... Ne5
{[%clk 0:00:19.5]} 29. Nxe5 {[%clk 0:00:56.4]} 29... Bxe5 {[%clk 0:00:20.4]} 30.
Rfd1 {[%clk 0:00:55.1]} 30... Rbd8 {[%clk 0:00:20.5]} 31. Rxd3 {[%clk
0:00:52.8]} 31... Rxd3 {[%clk 0:00:19.5]} 32. Rc2 {[%clk 0:00:53.7]} 32... Rd1+
{[%clk 0:00:18.7]} 33. Kh2 {[%clk 0:00:53.1]} 33... g6 {[%clk 0:00:19]} 34. Bc6
{[%clk 0:00:50.7]} 34... Kg7 {[%clk 0:00:18.7]} 35. Bb5 {[%clk 0:00:50.7]} 35...
Bd4 {[%clk 0:00:14.8]} 36. Kg2 {[%clk 0:00:49.9]} 36... Bc5 {[%clk 0:00:14.9]}
37. Bc4 {[%clk 0:00:50]} 37... Rd4 {[%clk 0:00:14.2]} 38. Re2 {[%clk 0:00:47.8]}
38... Kf6 {[%clk 0:00:13.3]} 39. a4 {[%clk 0:00:47.4]} 39... Rd1 {[%clk
0:00:13.3]} 40. Re4 {[%clk 0:00:44.8]} 40... Rd4 {[%clk 0:00:13.1]} 41. Re3
{[%clk 0:00:43]} 41... Rd1 {[%clk 0:00:13]} 42. Rf3+ {[%clk 0:00:42.9]} 42...
Ke5 {[%clk 0:00:12.7]} 43. Rxf7 {[%clk 0:00:42.1]} 43... Rd2 {[%clk 0:00:12.5]}
44. h4 {[%clk 0:00:39.5]} 44... g5 {[%clk 0:00:12.2]} 45. hxg5 {[%clk
0:00:39.2]} 45... hxg5 {[%clk 0:00:13.1]} 46. g4 {[%clk 0:00:39.8]} 46... Kd4
{[%clk 0:00:09.1]} 47. Kg3 {[%clk 0:00:26.9]} 47... Kc3 {[%clk 0:00:09]} 48. Rf5
{[%clk 0:00:24.8]} 48... Kb4 {[%clk 0:00:08]} 49. Rd5 {[%clk 0:00:17.8]} 49...
Bxf2+ {[%clk 0:00:06.4]} 50. Kf3 {[%clk 0:00:16.2]} 50... Bc5 {[%clk 0:00:06.5]}
51. Rxd2 {[%clk 0:00:15.3]} 1-0

[Event "*** SCC Grand Prix: Titled Tuesday Blitz"]
[Site "Chess.com"]
[Date "2020.07.14"]
[Round "6"]
[White "SiddharthGMJagadeesh"]
[Black "StephenDedalus83"]
[Result "0-1"]
[WhiteElo "2509"]
[BlackElo "2807"]
[TimeControl "180+1"]
[EndTime "11:08:05 PDT"]
[Termination "StephenDedalus83 won by resignation"]

1. Nf3 {[%clk 0:03:00.9]} 1... Nf6 {[%clk 0:02:58.5]} 2. c4 {[%clk 0:03:00.6]}
2... g6 {[%clk 0:02:58.2]} 3. g3 {[%clk 0:03:00.2]} 3... Bg7 {[%clk 0:02:58.3]}
4. Bg2 {[%clk 0:03:01.1]} 4... O-O {[%clk 0:02:58.4]} 5. O-O {[%clk 0:03:01.8]}
5... d5 {[%clk 0:02:58.3]} 6. cxd5 {[%clk 0:03:00.1]} 6... Nxd5 {[%clk
0:02:59.2]} 7. d3 {[%clk 0:03:00]} 7... e5 {[%clk 0:02:55.5]} 8. Bg5 {[%clk
0:02:56.5]} 8... f6 {[%clk 0:02:52]} 9. Bd2 {[%clk 0:02:55.7]} 9... Nc6 {[%clk
0:02:46.1]} 10. Nc3 {[%clk 0:02:55.2]} 10... Nde7 {[%clk 0:02:45.7]} 11. Rc1
{[%clk 0:02:51.5]} 11... Be6 {[%clk 0:02:42.6]} 12. a3 {[%clk 0:02:51.4]} 12...
Rb8 {[%clk 0:02:24.1]} 13. b4 {[%clk 0:02:50.2]} 13... Nd4 {[%clk 0:02:21.4]}
14. Nxd4 {[%clk 0:02:46.9]} 14... exd4 {[%clk 0:02:20.9]} 15. Ne4 {[%clk
0:02:46.2]} 15... b6 {[%clk 0:02:15.3]} 16. Qc2 {[%clk 0:02:36.6]} 16... Rc8
{[%clk 0:01:53.3]} 17. Qa4 {[%clk 0:02:29.4]} 17... Nd5 {[%clk 0:01:50.4]} 18.
Rc2 {[%clk 0:02:09.1]} 18... h6 {[%clk 0:01:49.1]} 19. f4 {[%clk 0:02:02.5]}
19... f5 {[%clk 0:01:47.6]} 20. Nf2 {[%clk 0:02:02.4]} 20... Nc3 {[%clk
0:01:30.1]} 21. Bxc3 {[%clk 0:01:55.3]} 21... dxc3 {[%clk 0:01:30]} 22. e3
{[%clk 0:01:45.5]} 22... c5 {[%clk 0:01:29.1]} 23. b5 {[%clk 0:01:36.8]} 23...
Qe7 {[%clk 0:01:22.7]} 24. e4 {[%clk 0:01:15.8]} 24... Qf7 {[%clk 0:01:22.4]}
25. Qa6 {[%clk 0:01:09.2]} 25... Bb3 {[%clk 0:01:20.6]} 26. Rcc1 {[%clk
0:01:09.2]} 26... Bd4 {[%clk 0:01:16.7]} 27. e5 {[%clk 0:01:00.9]} 27... Rc7
{[%clk 0:01:10.1]} 28. Kh1 {[%clk 0:00:57.7]} 28... c2 {[%clk 0:01:07.5]} 29. a4
{[%clk 0:00:47.3]} 29... Be3 {[%clk 0:01:06.4]} 30. a5 {[%clk 0:00:46.8]} 30...
Bxc1 {[%clk 0:01:01.7]} 31. Rxc1 {[%clk 0:00:47.7]} 31... Qe6 {[%clk 0:00:58.3]}
32. axb6 {[%clk 0:00:43.2]} 32... axb6 {[%clk 0:00:57.4]} 33. Nh3 {[%clk
0:00:26.8]} 33... Rd8 {[%clk 0:00:54.4]} 34. Ng1 {[%clk 0:00:22]} 34... Rxd3
{[%clk 0:00:53.1]} 35. Qa8+ {[%clk 0:00:21.7]} 35... Kg7 {[%clk 0:00:51.2]} 36.
Qb8 {[%clk 0:00:19.7]} 36... Rdd7 {[%clk 0:00:48.1]} 37. h4 {[%clk 0:00:16.7]}
37... Qg8 {[%clk 0:00:41.7]} 38. Qxb6 {[%clk 0:00:13.8]} 38... Qd8 {[%clk
0:00:36.6]} 39. e6 {[%clk 0:00:11.6]} 39... Rd6 {[%clk 0:00:34]} 40. Qa5 {[%clk
0:00:10.5]} 40... c4 {[%clk 0:00:31]} 41. Qc3+ {[%clk 0:00:09.1]} 41... Qf6
{[%clk 0:00:30.1]} 42. Qa5 {[%clk 0:00:06.3]} 42... Re7 {[%clk 0:00:28.6]} 43.
b6 {[%clk 0:00:05.7]} 43... Rdxe6 {[%clk 0:00:22.5]} 44. b7 {[%clk 0:00:05.9]}
44... Rb6 {[%clk 0:00:21.7]} 45. Qa8 {[%clk 0:00:04.7]} 45... Qf8 {[%clk
0:00:20.3]} 46. Qa5 {[%clk 0:00:03.2]} 46... Rbxb7 {[%clk 0:00:19.2]} 47. Bxb7
{[%clk 0:00:03.8]} 47... Rxb7 {[%clk 0:00:19.5]} 48. Nf3 {[%clk 0:00:04.4]}
48... Qd6 {[%clk 0:00:18.8]} 49. Ne5 {[%clk 0:00:04.3]} 49... Rc7 {[%clk
0:00:18.4]} 50. Qa1 {[%clk 0:00:03.2]} 50... c3 {[%clk 0:00:16.9]} 51. Kh2
{[%clk 0:00:02.7]} 51... Qd2+ {[%clk 0:00:16.4]} 52. Kh3 {[%clk 0:00:03.3]}
52... Qd6 {[%clk 0:00:16.1]} 53. Qa5 {[%clk 0:00:02.3]} 53... g5 {[%clk
0:00:15.6]} 54. hxg5 {[%clk 0:00:02.2]} 54... hxg5 {[%clk 0:00:15.5]} 55. Qb5
{[%clk 0:00:01.9]} 55... g4+ {[%clk 0:00:13.6]} 56. Kg2 {[%clk 0:00:02.2]} 56...
Qd2+ {[%clk 0:00:13.4]} 57. Kh1 {[%clk 0:00:02.6]} 57... Qxc1+ {[%clk
0:00:13.4]} 58. Kh2 {[%clk 0:00:03.5]} 0-1